bitfinex/quotes_ETHUSD_20250731
["timestamp","ask_amount","ask_price","bid_price","bid_amount"]
[1753930856989,0.24148084,3867.3,3866.6,0.9617]
[1753930857212,0.24148084,3867.3,3866.7,0.9617]
[1753930857404,0.24148084,3867.3,3866.5,0.001]
[1753930857604,0.24148084,3867.2,3866.8,0.9617]
[1753930857797,4.82011826,3867.4,3866.9,0.9617]
[1753930857996,0.24147152,3867.3,3866.9,0.9617]
[1753930858418,0.24147152,3867.3,3867.0,0.4701]
[1753930859225,0.24147152,3867.3,3866.5,0.001]
[1753930859424,0.002,3868.0,3867.1,0.4701]
[1753930859726,0.48491126,3868.0,3867.2,0.4916]
[1753930859907,0.24145563,3867.9,3867.3,0.4701]
[1753930860100,0.24143181,3867.8,3867.3,0.4701]
[1753930860308,0.24143181,3867.7,3867.4,0.9617]
[1753930860503,0.24143181,3867.6,3867.5,0.9617]
[1753930860917,0.002,3868.0,3867.5,0.9617]
[1753930861102,0.002,3867.7,3867.6,0.4701]
[1753930861499,0.002,3867.7,3867.0,0.001]
[1753930861699,0.4999,3867.7,3867.0,0.001]
[1753930861930,4.82011826,3867.1,3867.0,0.001]
[1753930862232,4.82011826,3867.4,3867.0,0.001]
[1753930862596,0.4999,3867.7,3867.1,0.9617]
[1753930862797,0.4999,3867.7,3867.1,0.4701]
[1753930863029,4.82011826,3867.4,3867.0,0.001]
[1753930863696,0.9453,3867.3,3867.0,0.001]
[1753930863895,0.97650254,3867.3,3867.0,0.001]
[1753930864098,4.82011826,3867.4,3867.0,0.001]
[1753930864412,0.9453,3867.2,3867.0,0.001]
[1753930864914,0.4979,3867.1,3867.0,0.001]
[1753930866536,5.31801826,3867.1,3867.0,0.001]
[1753930867715,5.76541826,3867.1,3867.0,0.001]
[1753930869533,6.00730155,3867.1,3867.0,0.001]
[1753930869852,6.0073013,3867.1,3867.0,0.001]
[1753930871036,6.24920506,3867.1,3867.0,0.001]
[1753930872511,6.24920506,3867.1,3866.5,0.001]
[1753930872716,4.82011826,3866.6,3866.5,0.001]
[1753930872928,5.09320384,3866.6,3865.0,0.9617]
[1753930873101,4.82011826,3865.6,3865.0,0.9617]
[1753930873303,5.31801826,3865.6,3865.0,0.9617]
[1753930873741,0.4979,3865.6,3865.0,0.9617]
[1753930874037,4.82011826,3865.9,3865.0,0.9617]
[1753930874210,5.28301826,3865.9,3865.1,0.9454]
[1753930874941,0.4629,3866.3,3865.1,0.4599]
[1753930875108,0.4629,3866.3,3864.9,0.4855]
[1753930875109,5.28301826,3866.7,3865.2,0.9454]
[1753930875300,0.241727,3866.6,3865.3,0.9454]
[1753930875507,0.241727,3866.6,3864.5,4.82011826]
[1753930875808,4.82011826,3866.4,3865.4,0.9454]
[1753930876005,4.82011826,3866.4,3865.5,0.9454]
[1753930876216,5.28301826,3866.4,3865.5,0.9454]
[1753930876416,0.03120254,3866.3,3865.5,0.9454]
[1753930876627,5.28301826,3866.4,3865.5,0.9454]
[1753930876840,5.28301826,3866.4,3865.6,0.4599]
[1753930877408,4.82011826,3866.7,3865.6,0.9454]
[1753930877611,4.82011826,3866.7,3865.7,0.9454]
[1753930877806,0.4629,3866.8,3865.8,0.9454]
[1753930878007,5.73221826,3867.0,3865.9,0.9454]
[1753930878218,5.73221826,3867.0,3866.0,0.9454]
[1753930878420,5.73221826,3867.0,3866.1,0.9454]
[1753930878743,0.4629,3867.3,3866.2,0.9454]
[1753930878937,0.24171002,3867.2,3866.3,0.9454]
[1753930879143,0.24171002,3867.2,3865.4,0.02587054]
[1753930879441,0.24171002,3867.2,3866.4,0.9454]
[1753930879740,0.24171002,3867.2,3866.5,0.9454]
[1753930880343,0.24171002,3867.2,3866.6,0.4599]
[1753930880645,0.4629,3867.2,3866.6,0.4599]
[1753930881319,4.82011826,3867.0,3866.6,0.4599]
[1753930881524,5.28301826,3867.0,3866.6,0.4599]
[1753930883423,0.4629,3867.0,3866.6,0.4599]
[1753930883752,0.4629,3866.9,3866.3,0.4599]
[1753930883939,0.9121,3866.9,3866.3,0.4599]
[1753930884721,0.4492,3866.9,3866.3,0.4599]
[1753930884920,0.4629,3866.8,3866.1,0.4855]
[1753930885121,4.82011826,3866.2,3865.6,0.001]
[1753930885561,5.28301826,3866.2,3865.6,0.001]
[1753930885762,0.4629,3866.2,3865.6,0.001]
[1753930886051,0.4629,3866.2,3865.6,0.4609]
[1753930886638,5.28301826,3866.2,3865.6,0.4609]
[1753930886838,0.94330254,3866.1,3865.6,0.001]
[1753930887143,0.9121,3866.0,3865.6,0.001]
[1753930888737,0.03120254,3865.9,3865.6,0.001]
[1753930889922,0.9121,3866.0,3865.6,0.001]
[1753930890130,0.4629,3866.0,3865.6,0.001]
[1753930890329,0.4629,3866.3,3865.7,0.4599]
[1753930890528,0.4629,3866.4,3865.7,0.9454]
[1753930891028,0.4492,3866.7,3865.7,0.9454]
[1753930891224,0.4629,3866.6,3865.7,0.9454]
[1753930891541,0.4629,3866.8,3865.7,0.9454]
[1753930891947,0.4629,3866.7,3865.7,0.9454]
[1753930892342,0.58620599,3867.3,3865.7,0.9454]
[1753930892588,0.4629,3867.0,3865.7,0.9454]
[1753930892761,0.4629,3867.3,3865.7,0.9454]
[1753930893132,0.4629,3867.1,3865.7,0.9454]
[1753930893482,0.4629,3867.6,3865.8,0.02586786]
[1753930893629,0.002,3867.7,3865.7,4.66560454]
[1753930894166,0.002,3867.7,3865.8,0.02586786]
[1753930894374,0.002,3867.7,3865.7,4.66560454]
[1753930895045,0.4649,3867.7,3865.7,4.66560454]
[1753930895248,0.4629,3867.5,3865.7,4.66560454]
[1753930896837,0.4629,3867.3,3865.7,4.66560454]
[1753930897033,0.4629,3867.0,3865.7,4.66560454]
[1753930897452,0.03320254,3867.7,3865.8,4.18010454]
[1753930897653,0.002,3867.7,3865.8,4.18010454]
[1753930898532,0.03320254,3867.7,3865.8,4.18010454]
[1753930900570,0.002,3867.7,3865.9,7.33493472]
[1753930900931,0.002,3867.7,3865.8,4.18010454]
[1753930901132,0.03320254,3867.7,3865.8,4.18010454]
[1753930903469,0.03320254,3867.7,3865.6,0.001]
[1753930903470,0.03320254,3867.7,3865.9,4.18010454]
[1753930908280,7.33493472,3867.5,3865.9,4.18010454]
[1753930908466,0.03120254,3867.4,3865.9,4.18010454]
[1753930909281,0.03120254,3867.4,3865.6,0.001]
[1753930909671,0.27290652,3867.4,3865.6,0.001]
[1753930910550,7.33493472,3867.0,3865.6,0.001]
[1753930910877,0.03120254,3866.9,3865.6,0.001]
[1753930912589,0.24172958,3866.9,3865.6,0.001]
[1753930915144,0.13576121,3867.4,3865.6,0.001]
[1753930915344,0.24167729,3867.3,3865.6,0.001]
[1753930915560,0.24167729,3867.2,3865.6,0.001]
[1753930915776,0.24167729,3867.1,3865.6,0.001]
[1753930915982,0.24167729,3867.0,3865.6,0.001]
[1753930916167,0.13900067,3867.7,3865.6,0.001]
[1753930916367,0.48335786,3867.6,3865.6,0.001]
[1753930916570,0.48335786,3867.5,3865.6,0.001]
[1753930916767,0.24167893,3867.4,3865.6,0.001]
[1753930916986,0.24167893,3867.3,3865.6,0.001]
[1753930917286,0.24167893,3867.2,3865.6,0.001]
[1753930917461,0.24167893,3867.1,3865.6,0.001]
[1753930917661,0.24167893,3867.0,3865.6,0.001]
[1753930917863,0.13900067,3867.7,3865.6,0.001]
[1753930918063,0.48343094,3867.6,3865.6,0.001]
[1753930918267,0.48343094,3867.5,3865.6,0.001]
[1753930918581,0.48343094,3867.4,3865.6,0.001]
[1753930918792,0.24171547,3867.3,3865.6,0.001]
[1753930919003,0.24171547,3867.2,3865.6,0.001]
[1753930919208,0.24176913,3867.1,3865.6,0.001]
[1753930919370,0.24176913,3867.0,3865.6,0.001]
[1753930919697,0.13900067,3867.7,3865.6,0.001]
[1753930919889,0.24184202,3867.6,3865.6,0.001]
[1753930920703,0.13900067,3867.7,3865.6,0.001]
[1753930920894,0.48381297,3867.6,3865.6,0.001]
[1753930921065,0.24190611,3867.5,3865.6,0.001]
[1753930921265,0.24190611,3867.4,3865.6,0.001]
[1753930921564,0.24190611,3867.3,3865.6,0.001]
[1753930921764,0.13900067,3867.7,3865.6,0.001]
[1753930921991,0.2419215,3867.6,3865.6,0.001]
[1753930922713,0.2419215,3867.6,3865.6,4.18110454]
[1753930924906,4.82295038,3867.4,3865.6,4.18110454]
[1753930925119,0.2419215,3867.3,3865.6,4.18110454]
[1753930926410,0.2419215,3867.3,3865.6,0.001]
[1753930927415,4.82295038,3867.4,3865.6,0.001]
[1753930927581,0.2420613,3867.3,3865.6,0.001]
[1753930937144,0.03120254,3867.2,3865.6,0.001]
[1753930937447,4.82295038,3866.8,3865.6,0.001]
[1753930938110,4.82295038,3867.1,3865.6,0.001]
[1753930938314,0.24236574,3867.0,3865.6,0.001]
[1753930938924,4.82295038,3867.1,3865.6,0.001]
[1753930939736,0.2424086,3867.0,3865.6,0.001]
[1753930942411,4.82295038,3866.8,3865.6,0.001]
[1753930942730,0.03120254,3866.7,3865.6,0.001]
[1753930943439,4.82295038,3866.8,3865.6,0.001]
[1753930943844,0.03120254,3866.7,3865.6,0.001]
[1753930944461,0.27369762,3866.7,3865.6,0.001]
[1753930944953,0.03120254,3866.7,3865.6,0.001]
[1753930945172,0.27369331,3866.7,3865.6,0.001]
[1753930945318,0.03120254,3866.7,3865.6,0.001]
[1753930945518,0.27369644,3866.7,3865.6,0.001]
[1753930946353,4.82295038,3866.4,3865.6,0.001]
[1753930946556,0.03120254,3866.3,3865.6,0.001]
[1753930946718,0.27368456,3866.3,3865.6,0.001]
[1753930947232,0.03120254,3866.3,3865.6,0.001]
[1753930947953,4.82295038,3866.4,3865.6,0.001]
[1753930948258,4.82495038,3866.8,3865.6,0.001]
[1753930948424,0.48476788,3866.7,3865.6,0.001]
[1753930948627,0.24238394,3866.6,3865.6,0.001]
[1753930948821,5.09653686,3866.5,3865.6,0.001]
[1753930949032,4.82295038,3866.2,3865.6,0.001]
[1753930949224,0.03120254,3866.1,3865.6,0.001]
[1753930949572,4.82295038,3866.2,3865.6,0.001]
[1753930949928,0.03120254,3866.1,3865.6,0.001]
[1753930950840,4.82295038,3866.2,3865.6,0.001]
[1753930951136,0.24226843,3866.1,3865.6,0.001]
[1753930951664,4.82295038,3865.9,3865.6,0.001]
[1753930952032,0.27340335,3865.8,3865.6,0.001]
[1753930952962,0.48427143,3865.7,3865.6,0.001]
[1753930953264,0.24220081,3865.7,3865.6,0.001]
[1753930953822,0.24220081,3865.8,3865.6,0.001]
[1753930954225,0.24189993,3865.7,3865.6,0.001]
[1753930954423,0.24189993,3865.8,3865.6,0.001]
[1753930954624,5.06485031,3865.7,3865.6,0.001]
[1753930959551,4.82295038,3865.7,3865.6,0.001]
[1753930960221,4.82295038,3866.4,3865.6,0.001]
[1753930960389,0.13585049,3866.0,3865.6,0.001]
[1753930960687,4.82295038,3866.1,3865.6,0.001]
[1753930960856,0.24132115,3866.0,3865.6,0.001]
[1753930961490,4.82295038,3866.1,3865.6,0.001]
[1753930961691,0.1394699,3866.8,3865.6,0.001]
[1753930961874,0.241295,3866.7,3865.6,0.001]
[1753930962189,4.82295038,3866.6,3865.6,0.001]
[1753930962487,4.82295038,3865.9,3865.6,0.001]
[1753930962648,0.03120254,3865.8,3865.6,0.001]
[1753930962992,4.82295038,3865.9,3865.6,0.001]
[1753930963884,0.03120254,3865.8,3865.6,0.001]
[1753930965199,4.82295038,3865.7,3865.6,0.001]
[1753930967016,5.06441048,3865.7,3865.6,0.001]
[1753930967164,4.82295038,3865.7,3865.6,0.001]
[1753930967618,5.06443557,3865.7,3865.6,0.001]
[1753930969387,5.09563811,3865.7,3865.6,0.001]
[1753930974233,5.33752746,3865.7,3865.6,0.001]
[1753930974525,5.30632492,3865.7,3865.6,0.001]
[1753930975126,4.82295038,3865.4,3865.3,0.001]
[1753930975293,5.06443557,3865.4,3865.3,0.001]
[1753930976306,5.30651608,3865.4,3865.3,0.001]
[1753930977324,5.30651608,3865.4,3865.2,0.001]
[1753930977484,0.51476824,3865.3,3865.2,0.001]
[1753930977684,0.4835657,3865.3,3863.9,0.001]
[1753930978029,0.13910314,3865.8,3863.9,0.001]
[1753930978030,4.82295038,3864.5,3863.9,0.001]
[1753930979384,4.82295038,3864.2,3863.9,0.001]
[1753930980401,0.03120254,3864.1,3863.9,0.001]
[1753930980803,0.27354312,3864.1,3863.9,0.001]
[1753930981596,0.03120254,3864.1,3863.9,0.001]
[1753930981785,4.82295038,3864.2,3863.9,0.001]
[1753930982310,0.24216453,3864.1,3863.9,0.001]
[1753930982940,4.82295038,3864.5,3863.9,0.001]
[1753930983119,0.24216766,3864.4,3863.9,0.001]
[1753930983809,4.82295038,3864.2,3863.9,0.001]
[1753930984002,0.03120254,3864.1,3863.9,0.001]
[1753930984517,0.27324999,3864.1,3863.9,0.001]
[1753930985518,0.24204745,3864.1,3863.9,0.001]
[1753930985722,4.82295038,3864.2,3863.9,0.001]
[1753930985723,0.24196086,3864.0,3863.9,0.001]
[1753930986015,0.24196086,3864.1,3863.9,0.001]
[1753930986241,0.2731634,3864.0,3863.9,0.001]
[1753930986391,0.03120254,3864.0,3863.9,0.001]
[1753930989258,0.51489723,3864.0,3863.9,0.001]
[1753930989402,0.2731634,3864.0,3863.9,0.001]
[1753930989603,0.03120254,3864.0,3863.9,0.001]
[1753930990027,0.48361637,3864.0,3863.9,0.001]
[1753930990839,0.24196086,3864.0,3863.9,0.001]
[1753930991335,5.06491124,3864.0,3863.9,0.001]
[1753930993240,5.30657309,3864.0,3863.9,0.001]
[1753930996458,5.30651717,3864.0,3863.9,0.001]
[1753930997452,5.30650906,3864.0,3863.9,0.001]
[1753930998130,5.30650906,3864.0,3863.5,0.001]
[1753930998461,4.82295038,3863.6,3863.5,0.001]
[1753930998657,5.09611378,3863.6,3863.5,0.001]
[1753931001268,5.09611378,3863.6,3860.9,0.001]
[1753931001473,4.82295038,3862.8,3860.9,0.001]
[1753931001639,4.82295038,3862.5,3860.9,0.001]
[1753931002368,4.82295038,3862.8,3860.9,0.001]
[1753931002547,0.03120254,3862.7,3860.9,0.001]
[1753931002867,4.82295038,3862.8,3860.9,0.001]
[1753931003273,0.03120254,3862.7,3860.9,0.001]
[1753931006554,4.82295038,3862.8,3860.9,0.001]
[1753931006739,3.25798254,3864.6,3861.6,4.82295038]
[1753931006945,4.82295038,3863.6,3861.6,4.82295038]
[1753931007157,0.48400824,3863.5,3861.6,4.82295038]
[1753931007455,0.24200412,3863.4,3861.9,4.82295038]
[1753931007670,0.24200412,3863.3,3861.9,4.82295038]
[1753931007975,4.82295038,3863.9,3861.9,4.82295038]
[1753931008269,0.48410279,3863.8,3861.9,4.82295038]
[1753931008474,0.48410279,3863.7,3861.9,4.82295038]
[1753931008672,0.48410279,3863.6,3861.9,4.82295038]
[1753931008840,0.24205144,3863.5,3861.9,4.82295038]
[1753931009041,0.24205144,3863.4,3861.6,4.82295038]
[1753931009237,0.24205144,3863.3,3861.7,0.02589533]
[1753931009443,0.24205144,3863.2,3861.7,0.02589533]
[1753931009643,0.24205144,3863.1,3861.6,4.82295038]
[1753931009843,4.82295038,3863.5,3861.7,0.02589533]
[1753931010077,0.2422306,3863.4,3861.7,0.02589533]
[1753931010544,0.2422306,3863.3,3861.7,0.02589533]
[1753931010873,0.2422306,3863.2,3861.7,0.02589533]
[1753931011063,4.82295038,3863.9,3861.9,4.82295038]
[1753931011263,0.48447642,3863.8,3862.0,0.02589331]
[1753931011462,0.48447642,3863.7,3862.0,0.02589331]
[1753931011683,0.48447642,3863.6,3862.0,0.02589331]
[1753931011849,0.24223821,3863.5,3861.7,4.82295038]
[1753931012050,0.24223821,3863.4,3861.8,0.02589466]
[1753931012245,4.82295038,3863.9,3861.8,0.02589466]
[1753931012463,0.48458664,3863.8,3861.8,0.02589466]
[1753931012659,0.24229332,3863.7,3861.8,0.02589466]
[1753931012859,0.24229332,3863.6,3861.8,0.02589466]
[1753931013062,0.24229332,3863.5,3862.0,4.82295038]
[1753931013265,4.82295038,3864.2,3862.1,0.02589264]
[1753931013583,0.48477202,3864.1,3862.1,0.02589264]
[1753931013883,0.48477202,3864.0,3862.1,0.02589264]
[1753931014083,0.48477202,3863.9,3862.1,0.02589264]
[1753931014385,0.24238601,3863.8,3862.6,4.82295038]
[1753931014580,0.24238601,3863.7,3862.7,0.02588862]
[1753931014753,4.82295038,3864.5,3862.7,4.20599316]
[1753931014954,0.4848378,3864.4,3862.7,4.20599316]
[1753931015155,0.4848378,3864.3,3862.7,4.20599316]
[1753931015373,0.4848378,3864.2,3862.7,4.20599316]
[1753931015680,0.4848378,3864.1,3862.7,4.18010454]
[1753931015858,0.2424189,3864.0,3862.7,4.18010454]
[1753931016066,4.82295038,3864.9,3862.7,4.20599316]
[1753931016254,0.48478626,3864.8,3862.7,4.20599316]
[1753931016449,0.48478626,3864.7,3862.7,4.18010454]
[1753931016769,0.48478626,3864.6,3862.9,4.82295038]
[1753931016971,0.48478626,3864.5,3863.2,4.82295038]
[1753931017157,0.24239335,3864.4,3863.3,0.0258846]
[1753931017363,0.002,3865.2,3863.3,0.0258846]
[1753931017671,0.24223171,3865.1,3863.3,0.0258846]
[1753931017876,0.48446342,3865.0,3863.2,4.82295038]
[1753931018055,0.48446342,3864.9,3863.0,4.82295038]
[1753931018259,5.30741148,3864.8,3862.4,4.82295038]
[1753931018457,0.002,3865.2,3862.4,4.82295038]
[1753931018458,4.82295038,3864.5,3862.4,4.82295038]
[1753931018754,0.24223171,3864.4,3862.4,4.82295038]
[1753931019363,4.82295038,3864.5,3862.4,4.82295038]
[1753931019686,4.82295038,3864.1,3862.1,4.82295038]
[1753931020288,4.82295038,3864.4,3862.1,4.82295038]
[1753931020451,4.82295038,3864.4,3862.4,4.82295038]
[1753931021283,4.82295038,3864.4,3862.1,4.82295038]
[1753931021593,0.03120254,3864.3,3862.1,4.82295038]
[1753931022456,0.03120254,3864.3,3861.8,9.00305492]
[1753931022457,4.82295038,3864.1,3861.8,9.00305492]
[1753931022892,0.03120254,3864.0,3861.9,4.18010454]
[1753931023093,4.82295038,3863.8,3861.9,4.18010454]
[1753931023295,4.82295038,3863.5,3862.0,4.18010454]
[1753931023796,0.03120254,3863.4,3862.0,4.18010454]
[1753931024184,0.2606283,3865.1,3862.0,4.18010454]
[1753931024372,4.82295038,3863.9,3862.1,4.18010454]
[1753931024573,4.82295038,3863.9,3861.8,4.18010454]
[1753931025299,4.82295038,3864.5,3862.4,4.82295038]
[1753931025491,0.2417758,3864.4,3862.4,4.82295038]
[1753931025795,4.82295038,3864.1,3862.0,4.82295038]
[1753931026290,4.82295038,3863.7,3861.6,0.001]
[1753931026496,0.03120254,3863.6,3861.6,0.001]
[1753931027085,4.82295038,3863.7,3861.6,0.001]
[1753931028294,4.82295038,3863.7,3861.6,4.82395038]
[1753931031201,4.82295038,3863.7,3861.6,0.001]
[1753931031795,0.03120254,3863.6,3861.6,0.001]
[1753931031978,4.82295038,3863.7,3861.6,0.001]
[1753931033805,4.82495038,3863.7,3861.6,0.001]
[1753931034913,4.82295038,3863.4,3861.6,0.001]
[1753931036110,4.82295038,3863.4,3861.5,4.77495038]
[1753931036314,0.03120254,3863.3,3861.2,9.00405492]
[1753931036515,4.82295038,3863.1,3861.2,9.00405492]
[1753931037215,4.82295038,3862.6,3861.2,0.001]
[1753931037796,4.82295038,3862.9,3861.2,0.001]
[1753931038614,4.82295038,3862.6,3861.2,0.001]
[1753931039289,4.82295038,3862.9,3861.2,0.001]
[1753931040420,4.82295038,3863.3,3861.3,4.82295038]
[1753931040602,4.82295038,3863.6,3861.3,4.82295038]
[1753931040918,4.82295038,3863.3,3861.3,4.82295038]
[1753931041121,4.82295038,3863.3,3861.2,0.001]
[1753931041311,4.82295038,3863.0,3861.2,0.001]
[1753931041508,4.82295038,3863.3,3861.3,4.82295038]
[1753931041940,0.002,3863.7,3861.6,4.82295038]
[1753931042094,0.002,3863.7,3862.2,4.82295038]
[1753931042289,0.002,3863.7,3861.8,4.18010454]
[1753931042515,4.82295038,3863.4,3861.8,4.18010454]
[1753931043929,4.82295038,3863.4,3861.3,4.18010454]
[1753931043930,0.03120254,3863.3,3861.3,4.18010454]
[1753931044219,0.03120254,3863.3,3861.2,0.001]
[1753931044220,4.82295038,3863.4,3861.4,4.18010454]
[1753931044423,4.82295038,3863.4,3861.5,4.18010454]
[1753931045028,4.82295038,3863.4,3861.2,0.001]
[1753931045029,4.82295038,3863.4,3861.6,4.18010454]
[1753931045430,4.82295038,3863.1,3861.2,0.001]
[1753931045726,4.82295038,3862.8,3861.2,0.001]
[1753931046097,4.82295038,3863.1,3861.2,0.001]
[1753931046845,4.82295038,3863.1,3861.2,4.82395038]
[1753931047537,4.82295038,3862.8,3861.2,0.001]
[1753931047853,4.82295038,3863.1,3861.2,0.001]
[1753931048196,0.03120254,3863.0,3861.2,0.001]
[1753931048607,4.82295038,3862.8,3861.2,0.001]
[1753931048808,0.002,3863.7,3861.2,0.001]
[1753931049036,4.82295038,3863.2,3861.3,4.82295038]
[1753931049635,4.82295038,3863.6,3861.3,4.82295038]
[1753931049801,4.82295038,3863.3,3861.3,4.82295038]
[1753931050001,0.24214285,3863.2,3861.3,4.82295038]
[1753931050326,4.82295038,3863.3,3861.3,4.82295038]
[1753931050529,0.24218375,3863.2,3861.6,4.82295038]
[1753931050835,0.03120254,3863.5,3861.4,4.82295038]
[1753931051008,0.27338251,3863.5,3861.4,4.82295038]
[1753931051214,0.24217997,3863.5,3861.4,4.82295038]
[1753931051400,0.03120254,3863.4,3861.4,4.82295038]
[1753931051595,0.24217997,3863.5,3861.4,4.82295038]
[1753931053611,0.03120254,3863.4,3861.4,4.82295038]
[1753931053813,4.82295038,3863.3,3861.2,0.001]
[1753931054025,0.03120254,3863.2,3861.2,0.001]
[1753931055828,4.82295038,3863.3,3861.2,0.001]
[1753931056140,0.03120254,3863.2,3861.2,0.001]
[1753931056710,4.82295038,3862.1,3861.2,0.001]
[1753931056937,0.03120254,3862.0,3861.2,0.001]
[1753931057120,0.03120254,3862.4,3861.2,0.001]
[1753931057328,4.82295038,3862.5,3861.2,0.001]
[1753931057935,4.82295038,3862.1,3861.2,0.001]
[1753931058121,0.03120254,3862.0,3861.2,0.001]
[1753931059053,0.03120254,3862.3,3861.2,0.001]
[1753931063586,4.82295038,3862.4,3861.2,0.001]
[1753931076353,0.002,3863.7,3861.2,0.001]
[1753931076354,4.82295038,3863.2,3861.2,0.02689868]
[1753931076696,4.82295038,3862.9,3861.2,0.001]
[1753931076889,0.27380296,3862.8,3861.2,0.001]
[1753931077088,0.002,3862.4,3861.2,0.001]
[1753931077288,0.002,3862.4,3861.2,4.18110454]
[1753931081208,4.82295038,3862.3,3861.2,4.18110454]
[1753931081419,0.03120254,3862.2,3861.2,4.18110454]
[1753931082079,4.82295038,3862.0,3861.2,0.001]
[1753931083599,4.82295038,3862.3,3861.2,0.001]
[1753931083800,0.24266916,3862.2,3861.2,0.001]
[1753931086579,4.82295038,3862.3,3861.2,0.001]
[1753931086914,0.24275174,3862.2,3861.2,0.001]
[1753931087613,0.13566721,3862.4,3861.2,0.001]
[1753931087812,0.002,3862.4,3861.2,4.84984906]
[1753931088045,0.002,3862.4,3861.2,4.82395038]
[1753931088474,0.002,3862.4,3861.2,0.001]
[1753931089747,0.27593654,3862.4,3861.2,0.001]
[1753931090214,0.03320254,3862.4,3861.2,0.001]
[1753931090633,0.002,3862.4,3861.2,0.001]
[1753931091349,4.82495038,3862.4,3861.2,0.001]
[1753931091555,0.002,3862.4,3861.2,0.001]
[1753931092664,0.002,3862.4,3861.7,4.82295038]
[1753931092863,0.002,3862.4,3861.8,0.02589466]
[1753931093034,0.002,3862.4,3861.7,4.82295038]
[1753931093863,0.002,3862.4,3861.3,4.82295038]
[1753931096077,0.002,3862.4,3861.6,4.82295038]
[1753931097986,0.002,3862.4,3861.7,4.18010454]
[1753931098179,0.002,3862.4,3861.8,4.18010454]
[1753931098476,0.002,3862.4,3861.9,4.18010454]
[1753931099176,0.002,3862.4,3861.7,4.18010454]
[1753931099685,0.002,3862.4,3861.8,4.18010454]
[1753931100184,0.002,3862.4,3861.4,4.18010454]
[1753931103948,0.002,3862.4,3861.6,4.82295038]
[1753931105448,0.002,3862.4,3862.3,4.82295038]
[1753931105850,0.002,3862.4,3862.3,4.84884168]
[1753931106067,0.002,3862.4,3861.8,4.18010454]
[1753931106473,0.002,3862.4,3862.0,4.82295038]
[1753931106679,0.002,3862.4,3862.1,0.02589264]
[1753931107699,0.002,3862.4,3862.3,4.82295038]
[1753931107883,1e-08,3862.8,3862.3,9.02894622]
[1753931108198,1e-08,3862.8,3862.7,4.82295038]
[1753931108493,1e-08,3862.8,3862.7,4.848839]
[1753931108703,1e-08,3862.8,3862.7,4.82295038]
[1753931108873,0.002,3863.7,3862.7,9.00305492]
[1753931109067,0.002,3863.7,3863.6,4.82295038]
[1753931109482,0.002,3863.7,3863.6,4.84883297]
[1753931110696,0.002,3863.7,3863.6,4.82295038]
[1753931111901,1e-08,3863.7,3863.6,9.00305492]
[1753931112665,1e-08,3863.7,3863.6,4.82295038]
[1753931113119,1e-08,3864.1,3863.6,4.82295038]
[1753931113299,1e-08,3864.1,3864.0,4.82295038]
[1753931113817,1e-08,3864.1,3862.2,0.25259227]
[1753931113974,1e-08,3864.1,3863.2,4.82295038]
[1753931114173,1e-08,3864.1,3863.5,4.82295038]
[1753931115876,1e-08,3864.1,3861.7,0.35259227]
[1753931116103,1e-08,3864.1,3862.9,4.82295038]
[1753931116318,1e-08,3864.1,3863.5,4.82295038]
[1753931116501,1e-08,3864.1,3863.6,0.02588259]
[1753931116874,1e-08,3864.1,3863.8,4.82295038]
[1753931117471,1e-08,3864.1,3863.9,0.02588058]
[1753931117814,1e-08,3864.1,3863.8,4.82295038]
[1753931120671,1e-08,3864.1,3863.9,0.02588058]
[1753931121484,1e-08,3864.1,3863.8,4.82295038]
[1753931121805,1e-08,3864.1,3863.7,4.82295038]
[1753931122008,1e-08,3864.1,3864.0,4.82295038]
[1753931124508,1e-08,3864.1,3863.7,4.82295038]
[1753931125422,1e-08,3864.1,3863.8,4.18010454]
[1753931129354,1e-08,3864.1,3864.0,4.82295038]
[1753931131134,1e-08,3864.1,3864.0,9.00305492]
[1753931132640,1e-08,3864.1,3864.0,4.18010454]
[1753931134509,4.77695039,3865.3,3864.0,4.18010454]
[1753931134726,4.77695039,3865.3,3863.4,4.18010454]
[1753931135433,4.90819944,3865.3,3863.4,4.18010454]
[1753931135736,4.77695039,3865.3,3863.4,4.18010454]
[1753931136342,0.03120254,3866.4,3863.6,4.82295038]
[1753931136343,4.82295038,3865.6,3863.6,4.82295038]
[1753931136499,0.24215453,3865.5,3863.6,4.82295038]
[1753931136944,4.82295038,3865.6,3863.6,4.82295038]
[1753931137100,0.27335916,3865.5,3863.6,4.82295038]
[1753931137839,0.24215662,3865.5,3863.6,4.82295038]
[1753931138403,0.24215662,3865.4,3863.6,4.82295038]
[1753931138599,0.24215662,3865.3,3863.6,4.82295038]
[1753931138800,0.24215662,3865.2,3863.6,4.82295038]
[1753931139099,4.82295038,3865.6,3863.6,4.82295038]
[1753931139297,0.48530196,3865.5,3863.6,4.82295038]
[1753931139528,0.48531626,3865.4,3863.4,4.18010454]
[1753931139728,4.82295038,3864.7,3863.4,4.18010454]
[1753931139929,4.82295038,3864.4,3862.4,4.18010454]
[1753931140131,4.82295038,3864.4,3862.5,4.18010454]
[1753931140132,0.03120254,3864.3,3862.5,4.18010454]
[1753931140935,4.82295038,3864.4,3862.5,4.18010454]
[1753931140936,4.82295038,3864.7,3862.6,4.82295038]
[1753931141123,0.27378782,3864.6,3862.6,4.82295038]
[1753931142730,4.82295038,3864.4,3862.5,4.18010454]
[1753931142937,0.03120254,3864.3,3862.5,4.18010454]
[1753931143133,0.27357307,3864.3,3862.5,4.18010454]
[1753931143332,0.03120254,3864.3,3862.5,4.18010454]
[1753931144033,0.002,3864.7,3863.0,4.82295038]
[1753931144822,0.24424928,3864.7,3863.0,4.82295038]
[1753931145122,0.002,3864.7,3863.0,4.82295038]
[1753931145814,0.24411622,3864.7,3863.0,4.82295038]
[1753931146019,0.002,3864.7,3863.0,4.82295038]
[1753931146731,0.24407321,3864.7,3863.0,4.82295038]
[1753931147355,0.002,3864.7,3863.0,4.82295038]
[1753931147738,4.82295038,3864.5,3862.6,4.18010454]
[1753931147943,0.002,3864.7,3862.6,4.18010454]